bitfinex/quotes_BTCUSD_20220303
["timestamp","ask_amount","ask_price","bid_price","bid_amount"]
[1646322169943,0.02299,42613.0,42600.0,0.0001]
[1646322169944,0.31358366,42613.0,42600.0,0.0001]
[1646322170141,0.17481472,42612.0,42600.0,0.0001]
[1646322170394,0.058719,42614.0,42600.0,0.0001]
[1646322170992,0.025,42618.0,42607.0,0.22703051]
[1646322171196,0.55903,42621.0,42600.0,0.0001]
[1646322171197,0.5473,42621.0,42600.0,0.0001]
[1646322171497,0.2041906,42616.0,42600.0,0.0001]
[1646322171692,0.2041906,42616.0,42606.0,0.7077]
[1646322172093,0.01173,42620.0,42606.0,0.7077]
[1646322172094,0.24431808,42615.0,42606.0,0.7077]
[1646322172294,0.01173,42620.0,42605.0,0.17778041]
[1646322172693,0.01173,42620.0,42606.0,0.7077]
[1646322173095,0.05,42621.0,42606.0,0.7077]
[1646322173296,0.05,42621.0,42614.0,0.7077]
[1646322173496,0.05,42621.0,42615.0,0.18068344]
[1646322173796,0.01956991,42627.0,42611.0,0.7077]
[1646322173797,0.00783991,42627.0,42611.0,0.7077]
[1646322174045,0.00783991,42627.0,42606.0,0.02299]
[1646322174241,0.00783991,42627.0,42602.0,0.02299]
[1646322174441,0.19862409,42620.0,42608.0,0.23949151]
[1646322174640,0.00783991,42627.0,42618.0,0.20048587]
[1646322175040,0.00783991,42627.0,42619.0,0.7077]
[1646322175640,0.00783991,42627.0,42619.0,0.88680319]
[1646322175839,0.00783991,42627.0,42626.0,0.21507376]
[1646322176039,0.32474716,42637.0,42626.0,0.92277376]
[1646322176241,0.117362,42643.0,42626.0,0.92277376]
[1646322176242,0.01171,42638.0,42626.0,0.21507376]
[1646322176441,0.058685,42635.0,42626.0,0.21507376]
[1646322176643,0.32472716,42641.0,42626.0,0.21507376]
[1646322176842,0.01171,42641.0,42636.0,0.21627546]
[1646322177040,0.01171,42641.0,42627.0,0.2065393]
[1646322177041,0.20160184,42641.0,42627.0,0.2065393]
[1646322177244,0.20160184,42641.0,42620.0,1.02032324]
[1646322177441,0.058679,42638.0,42620.0,0.747]
[1646322177890,0.31301716,42640.0,42624.0,0.7077]
[1646322178084,0.20160184,42641.0,42624.0,0.7077]
[1646322178383,0.20160184,42641.0,42626.0,0.7077]
[1646322178685,0.32472716,42645.0,42626.0,0.7077]
[1646322178884,0.32472716,42645.0,42631.0,0.7077]
[1646322178885,0.28985229,42644.0,42631.0,0.7077]
[1646322179189,0.31301716,42645.0,42631.0,0.7077]
[1646322179387,0.01893501,42650.0,42626.0,0.7077]
[1646322179586,0.058673,42646.0,42626.0,0.7077]
[1646322179784,0.31301716,42645.0,42626.0,0.7032]
[1646322179986,0.31301716,42645.0,42625.0,0.0393]
[1646322179987,0.21757548,42633.0,42625.0,0.0393]
[1646322180187,0.05,42643.0,42630.0,0.19220795]
[1646322180388,0.20261015,42641.0,42630.0,0.19220795]
[1646322181187,0.26128815,42641.0,42625.0,0.0393]
[1646322181386,0.26128815,42641.0,42625.0,0.0343]
[1646322181636,0.00624585,42633.0,42626.0,0.15870328]
[1646322181845,0.27022925,42640.0,42619.0,0.158674]
[1646322182037,0.058679,42642.0,42620.0,0.31301716]
[1646322182238,0.058684,42637.0,42628.0,0.00015562]
[1646322182540,0.48794793,42636.0,42628.0,0.00015562]
[1646322182738,0.01171,42635.0,42633.0,5.661506]
[1646322182940,0.54828708,42634.0,42633.0,5.661506]
[1646322183136,0.6936582,42634.0,42633.0,5.661506]
[1646322183338,0.95916548,42634.0,42633.0,5.661506]
[1646322183737,0.55999708,42634.0,42633.0,5.661506]
[1646322183938,0.01171,42634.0,42633.0,5.661506]
[1646322184239,0.23473672,42646.0,42633.0,5.661506]
[1646322184240,0.38226378,42645.0,42633.0,5.661506]
[1646322184439,0.083671,42645.0,42633.0,5.661506]
[1646322184638,0.21866073,42638.0,42633.0,5.661506]
[1646322184838,0.17643022,42637.0,42633.0,5.661506]
[1646322185324,0.117359,42643.0,42633.0,5.661506]
[1646322186127,0.45080398,42641.0,42633.0,5.661506]
[1646322186525,0.2083608,42634.0,42633.0,5.661506]
[1646322187128,0.058682,42637.0,42633.0,5.66166007]
[1646322187324,0.058682,42637.0,42633.0,5.66158107]
[1646322187325,0.00471267,42636.0,42633.0,5.66158107]
[1646322188725,0.06339867,42636.0,42633.0,5.66158107]
[1646322189168,0.21002226,42635.0,42633.0,5.76158107]
[1646322189970,0.00471267,42636.0,42633.0,5.76158107]
[1646322191369,0.058682,42635.0,42633.0,5.76158107]
[1646322191570,0.2344197,42644.0,42642.0,5.31634573]
[1646322192577,0.359973,42643.0,42642.0,4.33325526]
[1646322192793,0.359973,42643.0,42616.0,0.00203074]
[1646322192794,0.359973,42626.0,42616.0,0.00203074]
[1646322192992,0.7077,42634.0,42616.0,0.00203074]
[1646322192993,0.382963,42622.0,42616.0,0.00203074]
[1646322193195,0.17299,42620.0,42600.0,0.0001]
[1646322193393,0.02299,42618.0,42600.0,0.0001]
[1646322193593,0.058732,42607.0,42600.0,0.0001]
[1646322193796,0.74816744,42606.0,42600.0,0.0001]
[1646322193993,0.0775957,42606.0,42600.0,0.0001]
[1646322194295,0.025,42606.0,42600.0,0.0001]
[1646322194496,0.05,42616.0,42600.0,0.0001]
[1646322194694,0.108709,42616.0,42600.0,0.0001]
[1646322195092,0.108709,42616.0,42609.0,0.19678928]
[1646322195296,0.081699,42616.0,42609.0,0.19678928]
[1646322195692,0.33358874,42615.0,42600.0,0.0001]
[1646322195894,0.33358874,42615.0,42600.0,0.25590188]
[1646322195895,0.081707,42612.0,42600.0,0.25590188]
[1646322196094,0.29291998,42611.0,42600.0,0.0001]
[1646322196292,0.025,42612.0,42600.0,0.0001]
[1646322196551,0.02299,42616.0,42600.0,0.0001]
[1646322196744,0.31467142,42616.0,42600.0,0.0001]
[1646322196946,0.025,42617.0,42600.0,0.0001]
[1646322196947,0.058717,42612.0,42600.0,0.0001]
[1646322197144,0.30391529,42618.0,42609.0,0.39576815]
[1646322197345,0.17619673,42619.0,42609.0,0.49576815]
[1646322197549,0.32301706,42618.0,42609.0,0.29127074]
[1646322197746,0.025,42618.0,42609.0,0.29127074]
[1646322197949,0.46544594,42618.0,42609.0,0.29127074]
[1646322198148,0.058714,42615.0,42609.0,0.1]
[1646322198349,0.32301706,42614.0,42609.0,0.1]
[1646322198547,0.058714,42615.0,42609.0,0.1]
[1646322198748,0.359973,42614.0,42609.0,0.1]
[1646322199147,0.058714,42615.0,42609.0,0.1]
[1646322199349,0.05872352,42613.0,42609.0,0.1]
[1646322199547,0.17616952,42613.0,42611.0,0.16789318]
[1646322199751,0.083726,42614.0,42610.0,0.32301706]
[1646322199752,0.025,42614.0,42610.0,0.32301706]
[1646322199950,0.01003,42624.0,42609.0,0.1]
[1646322200152,0.025,42621.0,42609.0,0.1]
[1646322200393,0.058717,42620.0,42609.0,0.1]
[1646322200591,0.11743275,42618.0,42609.0,0.1]
[1646322202194,0.058719,42615.0,42611.0,6.971e-05]
[1646322202489,0.11743837,42615.0,42611.0,6.971e-05]
[1646322203493,0.058719,42615.0,42611.0,6.971e-05]
[1646322203693,0.05871742,42614.0,42611.0,6.971e-05]
[1646322204141,0.38769991,42614.0,42611.0,0.00086638]
[1646322204337,0.06468285,42614.0,42611.0,0.00086638]
[1646322204535,0.12340785,42614.0,42611.0,0.00086638]
[1646322204834,0.13366112,42612.0,42611.0,0.00086638]
[1646322205033,0.9341067,42612.0,42611.0,0.00086638]
[1646322205240,1.07290307,42612.0,42611.0,0.00086638]
[1646322205435,0.43288407,42612.0,42611.0,2.638e-05]
[1646322205637,0.43288407,42612.0,42588.0,0.32411706]
[1646322205638,1.41581601,42611.0,42588.0,0.32411706]
[1646322205836,0.058748,42606.0,42588.0,0.0011]
[1646322206137,0.359981,42603.0,42588.0,0.0011]
[1646322206335,0.21664423,42597.0,42588.0,0.0011]
[1646322206536,0.49364212,42594.0,42588.0,0.0011]
[1646322206936,0.359981,42594.0,42588.0,0.0011]
[1646322207536,0.058754,42596.0,42588.0,0.0011]
[1646322207787,0.058754,42596.0,42589.0,0.0027]
[1646322207991,0.19241082,42592.0,42589.0,0.0027]
[1646322208188,0.13366112,42590.0,42589.0,0.0027]
[1646322208988,0.058747,42592.0,42589.0,0.0027]
[1646322209189,0.058747,42592.0,42589.0,0.009476]
[1646322209791,0.058747,42592.0,42585.0,0.0011]
[1646322209792,0.117528,42590.0,42576.0,0.0033]
[1646322209989,0.20219674,42578.0,42576.0,0.0022]
[1646322210190,0.68110976,42577.0,42576.0,0.0022]
[1646322210393,0.69529624,42577.0,42576.0,0.0007]
[1646322210592,0.356782,42577.0,42576.0,0.0007]
[1646322210789,0.87309136,42577.0,42576.0,0.0007]
[1646322210989,0.356782,42577.0,42576.0,0.0007]
[1646322211192,0.049197,42578.0,42576.0,0.74609127]
[1646322211193,0.17631578,42578.0,42576.0,0.74609127]
[1646322211391,0.058771,42578.0,42575.0,0.0001]
[1646322211647,1.0,42585.0,42575.0,0.0001]
[1646322211843,0.025,42585.0,42575.0,0.0001]
[1646322212243,0.058756,42583.0,42575.0,0.20026758]
[1646322212446,0.058756,42583.0,42575.0,0.0001]
[1646322212846,0.11751186,42583.0,42575.0,0.0001]
[1646322213047,0.07227565,42580.0,42575.0,0.0001]
[1646322213248,0.117522,42581.0,42575.0,0.0001]
[1646322213443,0.117522,42581.0,42575.0,0.19790011]
[1646322213644,0.117522,42581.0,42576.0,0.16020465]
[1646322213845,0.142522,42581.0,42576.0,0.16020465]
[1646322214045,0.117522,42581.0,42576.0,0.16020465]
[1646322214447,0.117522,42581.0,42575.0,0.0001]
[1646322214646,0.5363421,42580.0,42575.0,0.0001]
[1646322215048,0.36005,42578.0,42575.0,0.0001]
[1646322215284,0.05876,42579.0,42575.0,0.0001]
[1646322215485,0.05876,42579.0,42577.0,0.18666707]
[1646322215689,0.05876,42579.0,42577.0,0.56942767]
[1646322215987,0.05876,42579.0,42577.0,0.37461212]
[1646322216186,0.117501,42585.0,42577.0,0.37461212]
[1646322216787,0.117501,42585.0,42577.0,0.18666707]
[1646322217188,0.05875,42585.0,42577.0,0.18666707]
[1646322217488,0.05875,42585.0,42577.0,0.18679706]
[1646322217886,0.05875,42585.0,42578.0,0.3287439]
[1646322218090,0.05875,42585.0,42578.0,0.25272786]
[1646322218292,0.05875,42585.0,42578.0,0.1918588]
[1646322219155,0.08375,42585.0,42577.0,0.18679706]
[1646322219757,0.3287439,42584.0,42577.0,0.00012999]
[1646322219955,0.13366112,42580.0,42577.0,6.716e-05]
[1646322220155,0.13366112,42578.0,42577.0,6.716e-05]
[1646322220554,0.418825,42578.0,42577.0,6.716e-05]
[1646322220756,0.418825,42578.0,42574.0,0.00110716]
[1646322220757,1.36005,42577.0,42574.0,0.00110716]
[1646322220959,0.36005,42575.0,42570.0,0.0122]
[1646322221257,0.3,42574.0,42567.0,0.01098198]
[1646322221458,0.370049,42573.0,42567.0,0.00598198]
[1646322221656,0.370049,42573.0,42565.0,0.0011]
[1646322221855,0.37389686,42573.0,42565.0,0.0011]
[1646322222055,0.05878466,42573.0,42565.0,0.0011]
[1646322222255,0.36005,42570.0,42560.0,0.03172069]
[1646322222455,0.36005,42570.0,42555.0,0.005]
[1646322222456,0.97762961,42567.0,42557.0,2.069e-05]
[1646322222656,0.97762961,42567.0,42555.0,0.005]
[1646322222657,0.36005,42564.0,42555.0,0.005]
[1646322222918,0.058791,42566.0,42555.0,0.005]
[1646322223116,0.11757961,42567.0,42555.0,0.005]
[1646322223117,0.36005,42565.0,42555.0,0.005]
[1646322223318,0.02299,42574.0,42557.0,0.3699872]
[1646322223522,0.4875249,42575.0,42570.0,0.05672545]
[1646322223523,0.158781,42575.0,42570.0,0.05672545]
[1646322223819,0.158781,42575.0,42569.0,0.20495629]
[1646322223820,0.058776,42574.0,42569.0,0.20495629]
[1646322224318,0.058776,42574.0,42556.0,0.0033]
[1646322224319,0.117549,42571.0,42556.0,0.0033]
[1646322224920,0.117549,42571.0,42556.0,0.006479]
[1646322224921,0.058775,42569.0,42556.0,0.006479]
[1646322225119,0.083775,42569.0,42556.0,0.006479]
[1646322225318,0.083775,42569.0,42564.0,0.18957645]
[1646322225520,0.117565,42565.0,42556.0,0.0033]
[1646322225923,0.05878,42565.0,42556.0,0.0033]
[1646322226321,0.05878,42565.0,42548.0,0.0032]
[1646322226322,0.6887939,42564.0,42555.0,0.0033]
[1646322226560,0.13366112,42560.0,42555.0,0.0033]
[1646322226761,0.7725879,42564.0,42548.0,0.0032]
[1646322226762,0.68588194,42559.0,42550.0,19.3626]
[1646322226961,0.360056,42558.0,42550.0,19.352]
[1646322227160,0.360056,42558.0,42550.0,19.351496]
[1646322227560,0.360056,42558.0,42551.0,0.20950791]
[1646322228060,0.6887999,42557.0,42550.0,19.351496]
[1646322228263,0.360056,42555.0,42550.0,19.346496]
[1646322228463,0.360056,42555.0,42550.0,19.341496]
[1646322229161,0.360056,42555.0,42554.0,0.20261064]
[1646322229362,0.360056,42555.0,42550.0,19.341496]
[1646322229363,0.360056,42553.0,42550.0,19.335996]
[1646322229565,0.360056,42551.0,42550.0,19.335996]
[1646322229766,0.360065,42554.0,42551.0,0.16838708]
[1646322229964,0.278084,42551.0,42550.0,19.15147608]
[1646322230328,0.67641794,42563.0,42554.0,1.0]
[1646322230530,0.3287439,42567.0,42555.0,0.360044]
[1646322230727,0.117575,42564.0,42562.0,0.15932547]
[1646322230930,0.5,42567.0,42563.0,0.360044]
[1646322231130,0.058804,42575.0,42562.0,0.31304536]
[1646322231332,0.083804,42575.0,42562.0,0.31304536]
[1646322231530,2.49838383,42579.0,42562.0,0.31304536]
[1646322231731,2.49838383,42579.0,42574.0,0.0542384]
[1646322231929,2.52338383,42579.0,42578.0,0.20408516]
[1646322232128,2.52338383,42579.0,42578.0,0.18908516]
[1646322232928,2.52338383,42579.0,42575.0,0.18703569]
[1646322233328,2.52338383,42579.0,42563.0,0.01001]
[1646322233529,0.025,42579.0,42565.0,0.73069]
[1646322233729,0.025,42579.0,42568.0,0.383034]
[1646322233932,0.0007746,42573.0,42571.0,0.360044]
[1646322234165,0.0007746,42573.0,42563.0,0.01001]
[1646322234363,0.0007746,42573.0,42572.0,0.16257077]
[1646322234562,0.0007746,42573.0,42569.0,2.60191312]
[1646322235164,0.1183316,42573.0,42569.0,2.60191312]
[1646322235368,0.0007746,42573.0,42569.0,2.60057068]
[1646322235967,0.3138682,42577.0,42569.0,2.60057068]
[1646322236264,0.3138682,42577.0,42569.0,2.49027068]
[1646322236265,0.15714701,42573.0,42569.0,2.49027068]
[1646322236468,0.21593065,42573.0,42569.0,2.49027068]
[1646322236666,0.52979885,42573.0,42569.0,2.43047068]
[1646322236868,0.13366112,42570.0,42569.0,2.43047068]
[1646322237069,0.13366112,42570.0,42550.0,17.16491677]
[1646322237070,1.0,42567.0,42550.0,17.16491677]
[1646322237271,0.15,42561.0,42550.0,14.0272012]
[1646322237467,0.15,42561.0,42550.0,13.44770135]
[1646322237468,0.11764507,42558.0,42550.0,13.44770135]
[1646322237667,0.7077,42553.0,42550.0,13.37770135]
[1646322237910,0.7077,42553.0,42550.0,12.7228835]
[1646322238110,0.7077,42553.0,42550.0,12.2971835]
[1646322238311,0.35,42551.0,42541.0,0.48168226]
[1646322238513,0.66572208,42541.0,42540.0,1.9221]
[1646322238711,0.66572208,42541.0,42540.0,1.05577562]
[1646322238712,0.76572208,42541.0,42540.0,1.05577562]
[1646322238910,0.76572208,42541.0,42540.0,0.586759]
[1646322238911,0.0118262,42541.0,42540.0,0.586759]
[1646322239114,0.13463615,42542.0,42540.0,0.3990345]
[1646322239309,0.0393,42544.0,42540.0,0.3990345]
[1646322239310,0.01297373,42543.0,42540.0,0.60346296]
[1646322239511,0.058825,42542.0,42540.0,0.3990345]
[1646322239810,0.058825,42542.0,42540.0,0.2890345]
[1646322240012,0.058825,42542.0,42536.0,0.0011]
[1646322240409,0.058825,42542.0,42538.0,0.21381838]
[1646322240610,0.058825,42542.0,42536.0,0.0011]
[1646322240810,0.117632,42541.0,42540.0,0.19462855]
[1646322241009,0.617632,42541.0,42540.0,0.19462855]
[1646322241210,0.5,42541.0,42536.0,0.0011]
[1646322241757,0.3138682,42540.0,42536.0,0.0011]
[1646322241955,0.49449639,42541.0,42539.0,0.16990086]
[1646322242155,0.059986,42540.0,42539.0,0.00426438]
[1646322242356,0.059986,42540.0,42536.0,0.0011]
[1646322242357,0.0006509,42538.0,42536.0,0.0011]
[1646322242558,1.21586622,42538.0,42536.0,0.0011]
[1646322242955,1.21586622,42538.0,42513.0,1.44910038]
[1646322242956,0.024975,42520.0,42513.0,1.44910038]
[1646322243158,1.27051932,42537.0,42522.0,0.285318]
[1646322243159,0.3138682,42536.0,42522.0,0.285318]
[1646322243356,0.025,42537.0,42529.0,0.17772403]
[1646322243357,0.05883644,42534.0,42529.0,0.17772403]
[1646322243558,0.059986,42533.0,42529.0,0.17772403]
[1646322243756,0.176526,42531.0,42528.0,0.0011]
[1646322243957,0.025,42533.0,42530.0,0.360157]
[1646322244158,0.059986,42532.0,42528.0,0.0011]
[1646322244360,0.059986,42531.0,42528.0,0.0011]
[1646322244557,0.02,42533.0,42528.0,0.0011]
[1646322244756,0.52,42533.0,42528.0,0.0011]
[1646322244957,0.058832,42531.0,42528.0,0.0011]
[1646322245158,0.058832,42531.0,42522.0,0.285318]
[1646322245159,0.059986,42530.0,42522.0,0.285318]
[1646322245416,0.059986,42530.0,42513.0,1.44910038]
[1646322245417,0.05885144,42524.0,42513.0,1.44910038]
[1646322245619,0.3088682,42523.0,42513.0,1.44910038]
[1646322245915,0.14270244,42524.0,42513.0,1.44642138]
[1646322246117,0.14270244,42524.0,42514.0,0.17243808]
[1646322246418,0.058854,42521.0,42513.0,1.44642138]
[1646322246618,1.0804222,42521.0,42513.0,1.44642138]
[1646322246822,0.7077,42518.0,42513.0,1.44642138]
[1646322247022,0.7077,42518.0,42513.0,1.44142138]
[1646322247023,0.7327,42518.0,42513.0,1.44142138]
[1646322247218,1.0465682,42518.0,42513.0,1.44142138]
[1646322247420,0.059986,42516.0,42513.0,1.44142138]
[1646322247619,0.7077,42516.0,42513.0,1.08819238]
[1646322247821,0.7077,42516.0,42512.0,0.0267554]
[1646322247822,0.7066,42516.0,42512.0,0.0267554]
[1646322248220,0.7066,42516.0,42512.0,0.002125]
[1646322248422,0.558864,42517.0,42513.0,0.360157]
[1646322248619,0.558864,42517.0,42514.0,0.16343207]
[1646322248620,0.5,42517.0,42514.0,0.16343207]
[1646322248820,0.5,42517.0,42512.0,0.20937976]
[1646322249079,0.5,42517.0,42513.0,0.360157]
[1646322249281,1.2431,42536.0,42513.0,0.360157]
[1646322249282,0.117683,42531.0,42514.0,0.15779893]
[1646322249482,0.8388682,42530.0,42512.0,0.20937976]
[1646322249685,0.525,42530.0,42513.0,0.360157]
[1646322249880,0.583837,42530.0,42511.0,0.16596997]
[1646322250082,0.583837,42530.0,42512.0,0.360157]
[1646322250681,0.583837,42530.0,42529.0,0.19886181]
[1646322250881,0.583837,42530.0,42523.0,0.20919283]
[1646322250882,0.525,42530.0,42523.0,0.20919283]
[1646322251081,0.05306,42537.0,42524.0,0.360157]
[1646322251482,0.05306,42537.0,42530.0,0.360157]
[1646322251680,0.05,42543.0,42530.0,0.360157]
[1646322251681,2.10619116,42555.0,42531.0,1.0]
[1646322251880,2.10619116,42555.0,42537.0,0.16427324]
[1646322251881,0.11762,42554.0,42537.0,0.16427324]
[1646322252081,0.058813,42549.0,42537.0,0.16427324]
[1646322252283,0.058813,42549.0,42538.0,0.68071772]
[1646322252681,0.11762,42554.0,42538.0,0.360157]
[1646322252914,0.11762,42554.0,42537.0,0.16427324]
[1646322252915,0.00438444,42541.0,42537.0,0.16427324]
[1646322253113,0.00438444,42541.0,42540.0,0.383147]
[1646322253312,0.00438444,42541.0,42540.0,0.18137253]
[1646322253532,0.00438444,42541.0,42540.0,0.54153053]
[1646322253916,0.058806,42552.0,42541.0,0.360158]
[1646322254119,0.117634,42549.0,42540.0,0.18137253]
[1646322254316,0.24000001,42547.0,42540.0,0.18137253]
[1646322254515,0.24000001,42547.0,42528.0,0.0011]
[1646322254516,0.03305901,42538.0,42528.0,0.0011]
[1646322254718,0.059985,42537.0,42528.0,0.0011]
[1646322255516,0.03305901,42538.0,42532.0,0.16183326]
[1646322256015,0.03305901,42538.0,42533.0,0.360158]
[1646322256220,0.24000001,42535.0,42529.0,0.360158]
[1646322256417,0.05643991,42535.0,42531.0,0.51288097]
[1646322256888,0.05643991,42535.0,42533.0,0.360158]
[1646322257089,0.05643991,42535.0,42533.0,0.52696116]
[1646322257290,9.892e-05,42538.0,42534.0,1.0]
[1646322258493,9.892e-05,42538.0,42534.0,1.18946188]
[1646322258691,9.892e-05,42538.0,42535.0,0.360158]
[1646322259090,9.892e-05,42538.0,42535.0,0.493708]
[1646322259293,9.892e-05,42538.0,42537.0,0.60845075]
[1646322259492,0.00154143,42541.0,42539.0,0.36018]
[1646322259692,0.00154143,42541.0,42539.0,0.360161]
[1646322259893,0.00154143,42541.0,42538.0,0.99732]
[1646322260196,0.00154143,42541.0,42538.0,0.99686]
[1646322260416,0.05,42553.0,42539.0,0.360161]
[1646322260814,0.31927492,42552.0,42538.0,0.99686]
[1646322261013,0.06175,42553.0,42535.0,0.4746]
[1646322261210,0.31927492,42552.0,42541.0,0.19079484]
[1646322261410,0.360161,42551.0,42541.0,0.19079484]
[1646322261811,0.371911,42551.0,42529.0,0.7386]
[1646322262012,0.058825,42545.0,42528.0,0.4644]
[1646322262211,0.766526,42543.0,42528.0,0.0011]
[1646322262409,0.089092,42542.0,42531.0,0.21351342]
[1646322262612,0.31927492,42541.0,42528.0,0.0011]
[1646322262814,0.371911,42540.0,42528.0,0.0011]
[1646322263010,0.05883691,42538.0,42528.0,0.0011]
[1646322263210,0.17651,42536.0,42528.0,0.0011]
[1646322263410,0.371911,42535.0,42528.0,0.0011]
[1646322263621,0.15,42533.0,42523.0,0.1]
[1646322263813,0.089092,42532.0,42523.0,0.1]
[1646322264069,0.05885736,42531.0,42523.0,0.1]
[1646322264261,0.489617,42530.0,42523.0,0.1]
[1646322264463,0.13366112,42526.0,42523.0,0.1]
[1646322264662,0.13366112,42524.0,42523.0,0.1]
[1646322264861,0.49382212,42524.0,42523.0,0.1]
[1646322265261,0.49241509,42524.0,42523.0,0.1]
[1646322265466,0.360161,42524.0,42523.0,0.1]
[1646322265865,0.371911,42524.0,42523.0,0.05]
[1646322266063,0.371911,42524.0,42523.0,0.04]
[1646322266468,0.50306509,42524.0,42523.0,0.04]
[1646322266665,0.49131509,42524.0,42523.0,0.04]
[1646322266866,0.358961,42524.0,42523.0,0.04]
[1646322267464,0.358961,42524.0,42511.0,0.01596997]
[1646322267465,0.136211,42521.0,42511.0,0.01596997]
[1646322267664,0.358938,42519.0,42511.0,0.01596997]
[1646322268307,0.083869,42521.0,42511.0,0.33188057]
[1646322268308,0.142738,42521.0,42511.0,0.33188057]
[1646322268509,0.083869,42521.0,42511.0,0.01596997]
[1646322268808,0.3159106,42520.0,42511.0,0.01596997]
[1646322269010,0.058869,42521.0,42511.0,0.01596997]
[1646322269213,0.3159106,42520.0,42511.0,0.01596997]
[1646322269410,0.360306,42518.0,42511.0,0.01596997]
[1646322269614,0.4,42517.0,42510.0,0.00394643]
[1646322269810,0.4,42517.0,42507.0,0.00087328]
[1646322269811,0.95,42514.0,42507.0,0.00087328]
[1646322270011,0.7077,42512.0,42507.0,0.00087328]
[1646322270212,0.5418846,42513.0,42507.0,0.00087328]
[1646322270213,0.7077,42508.0,42507.0,0.00087328]
[1646322270411,0.360306,42508.0,42507.0,0.00087328]
[1646322270718,0.51034009,42508.0,42507.0,0.00087328]
[1646322271111,0.378086,42508.0,42507.0,0.00087328]
[1646322271313,0.0393,42508.0,42507.0,0.00087328]
[1646322271564,0.6762726,42508.0,42507.0,0.00087328]
[1646322271862,0.360362,42508.0,42507.0,0.00087328]
[1646322272064,0.49261609,42508.0,42507.0,0.00087328]
[1646322272464,1.0,42507.0,42501.0,0.00143478]
[1646322272663,0.01334575,42504.0,42501.0,0.00318134]
[1646322272865,0.0159426,42502.0,42501.0,0.00318134]
[1646322273063,1.1325422,42502.0,42501.0,0.00318134]
[1646322273266,0.1084816,42502.0,42501.0,0.00318134]
[1646322273663,0.02299,42509.0,42501.0,0.00318134]
[1646322273664,0.55741002,42510.0,42501.0,0.00318134]
[1646322273863,0.0126353,42508.0,42501.0,0.00318134]
[1646322274065,0.0149354,42505.0,42501.0,0.00318134]
[1646322274264,0.72414393,42503.0,42501.0,0.00318134]
[1646322274464,0.359577,42502.0,42501.0,0.00318134]
[1646322275304,1.7066,42499.0,42498.0,0.16602149]
[1646322275501,1.7066,42499.0,42498.0,0.1329543]
[1646322275502,0.359577,42499.0,42498.0,0.1329543]
[1646322275703,0.359577,42499.0,42481.0,0.16]
[1646322275704,0.859577,42498.0,42486.0,0.3159106]
[1646322275909,0.859577,42498.0,42472.0,0.02299]
[1646322275910,0.642788,42498.0,42472.0,0.02299]
[1646322276100,0.642788,42498.0,42473.0,0.01176]
[1646322276303,0.642788,42498.0,42479.0,0.16475817]
[1646322276501,0.354577,42497.0,42479.0,0.16475817]
[1646322276699,0.413459,42495.0,42479.0,0.15975817]
[1646322276900,0.01282002,42494.0,42479.0,0.15975817]
[1646322277101,0.32873062,42494.0,42479.0,0.15975817]
[1646322277302,0.354562,42493.0,42479.0,0.15975817]
[1646322277501,0.529562,42493.0,42475.0,0.0011]
[1646322277702,0.1,42492.0,42475.0,0.0011]
[1646322277903,0.208903,42489.0,42475.0,0.0011]
[1646322278104,0.01252193,42486.0,42475.0,0.0011]
[1646322278300,0.01258407,42484.0,42475.0,0.0011]
[1646322278507,0.354562,42483.0,42475.0,0.0011]
[1646322278700,1.03619467,42484.0,42475.0,0.0011]
[1646322278701,0.32849467,42484.0,42475.0,0.0011]
[1646322278902,0.025,42486.0,42475.0,0.0011]
[1646322279359,0.354562,42485.0,42475.0,0.0011]
[1646322279560,0.025,42486.0,42475.0,0.0011]
[1646322279760,0.0239,42486.0,42475.0,0.0011]
[1646322279960,0.05,42492.0,42475.0,0.0011]
[1646322280161,0.354562,42491.0,42478.0,0.16465829]
[1646322280364,0.05,42492.0,42479.0,0.6764026]
[1646322280565,2.23731844,42500.0,42479.0,0.6764026]
[1646322280566,2.23731844,42500.0,42491.0,0.20989956]
[1646322280762,2.23731844,42500.0,42481.0,0.3159106]
[1646322280763,0.354562,42499.0,42481.0,0.3159106]
[1646322280960,2.26231844,42500.0,42481.0,0.3159106]
[1646322281166,2.26231844,42500.0,42494.0,0.16040495]
[1646322281362,2.26231844,42500.0,42495.0,0.6764026]
[1646322281564,2.23731844,42500.0,42496.0,0.52477792]
[1646322281763,2.23731844,42500.0,42498.0,0.19255839]
[1646322282160,2.23731844,42500.0,42496.0,0.360492]
[1646322282361,2.23731844,42500.0,42497.0,0.360492]
[1646322282837,2.23731844,42500.0,42499.0,0.360492]
[1646322283240,2.23621844,42500.0,42499.0,0.1533117]
[1646322283440,2.23621844,42500.0,42499.0,0.5138037]
[1646322283641,2.23621844,42500.0,42494.0,0.16040495]
[1646322283846,2.23621844,42500.0,42495.0,0.15739306]
[1646322284239,0.01175,42511.0,42496.0,0.65904381]
[1646322284442,0.04793354,42512.0,42499.0,0.02299]
[1646322284641,0.38,42522.0,42519.0,0.19660329]
[1646322284840,0.25126142,42525.0,42520.0,0.3]
[1646322284841,0.24663586,42525.0,42520.0,0.3]
[1646322285039,0.05,42528.0,42519.0,0.15779165]
[1646322285241,0.354562,42527.0,42519.0,0.35983956]
[1646322285440,0.015,42536.0,42520.0,0.32299]
[1646322285441,0.15,42534.0,42520.0,0.32299]
[1646322285640,0.354562,42535.0,42520.0,0.3]
[1646322285840,0.354562,42534.0,42532.0,0.20502665]
[1646322286040,0.354562,42534.0,42520.0,0.3]
[1646322286041,0.05073907,42530.0,42520.0,0.3]
[1646322286347,0.05073907,42530.0,42529.0,0.19815262]
[1646322286548,0.05073907,42530.0,42529.0,0.18815262]
[1646322286950,0.05073907,42530.0,42529.0,0.37121625]
[1646322287151,0.40530107,42530.0,42529.0,0.37121625]
[1646322287549,0.05073907,42530.0,42528.0,0.0011]
[1646322287755,0.654562,42529.0,42528.0,0.0011]
[1646322287950,0.354562,42529.0,42528.0,0.0011]
[1646322288551,0.354562,42529.0,42521.0,0.21492743]
[1646322289350,0.05073907,42530.0,42521.0,0.21492743]
[1646322289949,0.05073907,42530.0,42520.0,0.1625196]
[1646322289950,0.354562,42529.0,42520.0,0.1625196]